fUSD/lending_fUSD_20250123
["ID","MTS","AMOUNT","RATE_DAILY","PERIOD"]
[350073322,1737599464659,-832.87,0.00021642,2]
[350073323,1737599464668,-567.524343,0.00021642,2]
[350073324,1737599464678,-598.68,0.00021642,2]
[350073325,1737599464688,-726.07,0.00021642,2]
[350073326,1737599464698,-877.0,0.00021642,2]
[350073327,1737599464708,-561.82,0.00021642,2]
[350073328,1737599464718,-160.936355,0.00021642,2]
[350073329,1737599464728,-1634.03,0.00021642,2]
[350073330,1737599464738,-1061.31,0.00021642,2]
[350073331,1737599464748,-2096.31,0.00021642,2]
[350073332,1737599464758,-2326.67,0.00021642,2]
[350073333,1737599464768,-513.75495602,0.00021642,2]
[350073334,1737599464779,-1001.28,0.00021642,2]
[350073335,1737599464788,-2560.3,0.00021642,2]
[350073336,1737599464798,-1111.68,0.00021642,2]
[350073337,1737599464808,-1248.25,0.00021642,2]
[350073338,1737599464818,-500.0,0.00021643,2]
[350073339,1737599464827,-500.0,0.00021643,2]
[350073340,1737599464837,-500.0,0.00021643,2]
[350073341,1737599464846,-500.0,0.00021643,2]
[350073342,1737599464855,-500.0,0.00021643,2]
[350073343,1737599464866,-500.0,0.00021643,2]
[350073344,1737599464878,-675.5,0.00021643,2]
[350073345,1737599464887,-988.31,0.00021643,2]
[350073346,1737599464896,-500.0,0.00021643,2]
[350073347,1737599464907,-500.0,0.00021643,2]
[350073348,1737599464916,-500.0,0.00021643,2]
[350073349,1737599464925,-509.86,0.00021643,2]
[350073350,1737599464935,-500.0,0.00021643,2]
[350073351,1737599464945,-500.0,0.00021643,2]
[350073352,1737599464956,-500.0,0.00021643,2]
[350073353,1737599464966,-500.0,0.00021643,2]
[350073354,1737599464975,-500.0,0.00021643,2]
[350073355,1737599464984,-505.3,0.00021643,2]
[350073356,1737599464993,-500.0,0.00021643,2]
[350073357,1737599465002,-500.0,0.00021643,2]
[350073358,1737599465011,-500.0,0.00021643,2]
[350073359,1737599465020,-500.0,0.00021643,2]
[350073360,1737599465029,-500.0,0.00021643,2]
[350073361,1737599465039,-500.0,0.00021643,2]
[350073362,1737599465049,-500.0,0.00021643,2]
[350073363,1737599465058,-500.0,0.00021643,2]
[350073364,1737599465067,-500.0,0.00021643,2]
[350073365,1737599465075,-500.0,0.00021643,2]
[350073366,1737599465084,-500.0,0.00021643,2]
[350073367,1737599465093,-647.70025672,0.00021643,2]
[350073368,1737599465102,-500.0,0.00021643,2]
[350073369,1737599465112,-500.0,0.00021643,2]
[350073370,1737599465123,-500.0,0.00021643,2]
[350073371,1737599465133,-561.44,0.00021643,2]
[350073372,1737599465143,-502.7,0.00021643,2]
[350073373,1737599465153,-647.89,0.00021643,2]
[350073374,1737599465163,-500.0,0.00021643,2]
[350073375,1737599465173,-3339.86,0.00021643,2]
[350073376,1737599465184,-500.0,0.00021643,2]
[350073377,1737599465195,-788.96,0.00021643,2]
[350073378,1737599465204,-772.85,0.00021643,2]
[350073379,1737599465213,-1244.64,0.00021643,2]
[350073380,1737599465224,-500.0,0.00021643,2]
[350073381,1737599465233,-1459.64,0.00021643,2]
[350073382,1737599465243,-561.73,0.00021643,2]
[350073383,1737599465253,-500.0,0.00021643,2]
[350073384,1737599465262,-671.25,0.00021643,2]
[350073385,1737599465271,-1204.99,0.00021643,2]
[350073386,1737599465281,-1657.73,0.00021643,2]
[350073387,1737599465291,-673.68,0.00021643,2]
[350073388,1737599465301,-2004.83,0.00021643,2]
[350073389,1737599465311,-500.0,0.00021643,2]
[350073390,1737599465321,-501.79,0.00021643,2]
[350073391,1737599465331,-2667.34,0.00021643,2]
[350073392,1737599465340,-500.0,0.00021643,2]
[350073393,1737599465350,-742.07,0.00021643,2]
[350073394,1737599465361,-500.0,0.00021643,2]
[350073395,1737599465371,-1126.57,0.00021643,2]
[350073396,1737599465382,-1053.15,0.00021643,2]
[350073397,1737599465391,-500.0,0.00021643,2]
[350073398,1737599465401,-1636.74,0.00021643,2]
[350073399,1737599465412,-841.37,0.00021643,2]
[350073400,1737599465422,-1167.74,0.00021643,2]
[350073401,1737599465433,-537.15,0.00021643,2]
[350073402,1737599465443,-242.79621349,0.00021643,2]
[350073403,1737599465455,-1055.11,0.00021643,2]
[350073404,1737599465466,-500.0,0.00021643,2]
[350073405,1737599465475,-3246.93,0.00021643,2]
[350073406,1737599465485,-1812.62,0.00021643,2]
[350073407,1737599465494,-500.0,0.00021643,2]
[350073408,1737599465505,-964.19,0.00021643,2]
[350073409,1737599465515,-500.0,0.00021643,2]
[350073410,1737599465527,-1463.35,0.00021643,2]
[350073411,1737599465537,-756.51,0.00021643,2]
[350073412,1737599465548,-521.842366,0.00021643,2]
[350073413,1737599465559,-1000.0,0.00021643,2]
[350073414,1737599465570,-500.0,0.00021643,2]
[350073415,1737599465579,-500.0,0.00021643,2]
[350073416,1737599465589,-1060.92,0.00021643,2]
[350073417,1737599465599,-1921.47,0.00021643,2]
[350073418,1737599465608,-500.0,0.00021643,2]
[350073419,1737599465618,-500.0,0.00021643,2]
[350073420,1737599465627,-924.69,0.00021643,2]
[350073421,1737599465638,-500.0,0.00021643,2]
[350073422,1737599465649,-3081.37,0.00021643,2]
[350073423,1737599465658,-923.14,0.00021643,2]
[350073424,1737599465668,-500.0,0.00021643,2]
[350073425,1737599465677,-694.55,0.00021643,2]
[350073426,1737599465686,-1906.61,0.00021643,2]
[350073427,1737599465696,-1262.91,0.00021643,2]
[350073428,1737599465706,-500.0,0.00021643,2]
[350073429,1737599465716,-500.0,0.00021643,2]
[350073430,1737599465726,-547.76,0.00021643,2]
[350073431,1737599465736,-500.0,0.00021643,2]
[350073432,1737599465745,-500.0,0.00021643,2]
[350073433,1737599465754,-1771.53,0.00021643,2]
[350073434,1737599465763,-1218.14,0.00021643,2]
[350073435,1737599465773,-929.07,0.00021643,2]
[350073436,1737599465783,-1872.91,0.00021643,2]
[350073437,1737599465793,-1206.37,0.00021643,2]
[350073438,1737599465802,-500.0,0.00021643,2]
[350073439,1737599465811,-1867.47,0.00021643,2]
[350073440,1737599465821,-500.0,0.00021643,2]
[350073441,1737599465830,-1460.57,0.00021643,2]
[350073442,1737599465839,-500.0,0.00021643,2]
[350073443,1737599465849,-500.0,0.00021643,2]
[350073444,1737599465859,-1160.34,0.00021643,2]
[350073445,1737599465871,-500.0,0.00021643,2]
[350073446,1737599465880,-524.68038865,0.00021643,2]
[350073447,1737599465891,-500.0,0.00021643,2]
[350073448,1737599466022,-796.55,0.00021643,2]
[350073449,1737599466032,-692.17,0.00021643,2]
[350073450,1737599466042,-1258.1,0.00021643,2]
[350073451,1737599466052,-500.0,0.00021643,2]
[350073452,1737599466063,-1251.58,0.00021643,2]
[350073453,1737599466072,-500.0,0.00021643,2]
[350073454,1737599466083,-2295.01,0.00021643,2]
[350073455,1737599466092,-526.8,0.00021643,2]
[350073456,1737599466102,-2099.06,0.00021643,2]
[350073457,1737599466111,-500.0,0.00021643,2]
[350073458,1737599466120,-681.51,0.00021643,2]
[350073459,1737599466130,-1038.44,0.00021643,2]
[350073460,1737599466139,-346.84498676,0.00021643,2]
[350073461,1737599466149,-500.0,0.00021643,2]
[350073462,1737599466159,-688.26,0.00021643,2]
[350073463,1737599466169,-500.0,0.00021643,2]
[350073464,1737599466178,-859.68,0.00021643,2]
[350073465,1737599466187,-839.81,0.00021643,2]
[350073466,1737599466197,-500.0,0.00021643,2]
[350073467,1737599466207,-878.81,0.00021643,2]
[350073468,1737599466218,-500.0,0.00021643,2]
[350073469,1737599466227,-529.67,0.00021643,2]
[350073470,1737599466236,-2809.15,0.00021643,2]
[350073471,1737599466246,-758.26,0.00021643,2]
[350073472,1737599466255,-1218.65,0.00021643,2]
[350073473,1737599466264,-500.0,0.00021643,2]
[350073474,1737599466274,-512.25,0.00021643,2]
[350073475,1737599466283,-500.0,0.00021643,2]
[350073476,1737599466293,-514.59409573,0.00021643,2]
[350073477,1737599466305,-847.25,0.00021643,2]
[350073478,1737599466317,-809.53,0.00021643,2]
[350073479,1737599466327,-1137.11,0.00021643,2]
[350073480,1737599466336,-500.0,0.00021643,2]
[350073481,1737599466346,-500.0,0.00021643,2]
[350073482,1737599466356,-511.35999075,0.00021643,2]
[350073483,1737599466366,-500.0,0.00021643,2]
[350073484,1737599466376,-636.04,0.00021643,2]
[350073485,1737599466386,-236.95112383,0.00021643,2]
[350073486,1737599466396,-500.0,0.00021643,2]
[350073487,1737599466406,-2655.17,0.00021643,2]
[350073488,1737599466415,-500.0,0.00021643,2]
[350073489,1737599466425,-2577.5,0.00021643,2]
[350073490,1737599466434,-1000.0,0.00021644,3]
[350073491,1737599466444,-1000.0,0.00021644,3]
[350073492,1737599466453,-1107.0,0.00021644,3]
[350073493,1737599466463,-337.11980556,0.00021659,3]
[350073494,1737599466474,-555.08,0.00021685,7]
[350073495,1737599466484,-555.08,0.00021685,7]
[350073496,1737599466494,-400.0,0.000217,7]
[350073497,1737599466504,-300.0,0.000217,7]
[350073498,1737599466513,-809.22795548,0.000217,30]
[350073499,1737599466523,-4515.02197867,0.000217,2]
[350073500,1737599466532,-354.85,0.0002174,2]
[350073501,1737599466542,-150.0,0.00021742,2]
[350073502,1737599466551,-150.0,0.00021753,2]
[350073503,1737599466560,-1445.19,0.00021757,2]
[350073504,1737599466569,-4325.91,0.00021757,2]
[350073505,1737599466578,-150.99,0.00021757,2]
[350073506,1737599466588,-299.99,0.00021757,7]
[350073507,1737599466597,-150.99,0.00021757,2]
[350073508,1737599466607,-150.0,0.00021757,2]
[350073509,1737599466615,-350.0,0.00021763,2]
[350073510,1737599466624,-928.2,0.00021766,2]
[350073511,1737599466634,-3000.0,0.0002178,2]
[350073512,1737599466643,-150.0,0.00021795,2]
[350073513,1737599466653,-500.0,0.000218,7]
[350073514,1737599466662,-600.0,0.000218,7]
[350073515,1737599466671,-1000.0,0.000218,2]
[350073516,1737599466680,-7270.72071789,0.000218,2]
[350073517,1737599466690,-128261.0320705,0.000218,2]
[350073518,1737599466699,-500.0,0.00021817,2]
[350073519,1737599466709,-349.23951969,0.00021817,2]
[350073520,1737599466720,-500.0,0.00021817,2]
[350073521,1737599466730,-500.0,0.00021817,2]
[350073522,1737599466740,-530.50072185,0.00021817,2]
[350073523,1737599466749,-500.0,0.00021817,2]
[350073524,1737599466759,-446.48508555,0.00021817,2]
[350073525,1737599466768,-249.21,0.00021821,2]
[350073526,1737599466778,-500.0,0.00021824,2]
[350073527,1737599466788,-150.0,0.00021858,2]
[350073528,1737599466799,-9312.89502414,0.0002187,2]
[350073529,1737599466808,-13040.89070983,0.00021874,3]
[350073530,1737599466819,-509.07,0.000219,2]
[350073531,1737599466828,-256.5484869,0.000219,2]
[350073532,1737599466838,-1120.0,0.000219,2]
[350073533,1737599466848,-1046.0,0.000219,2]
[350073534,1737599466857,-337.11980556,0.000219,3]
[350073535,1737599466869,-401.06520507,0.000219,2]
[350073536,1737599466884,-10037.51856888,0.000219,4]
[350073537,1737599466893,-156.0018296,0.000219,2]
[350073538,1737599466903,-156.0018296,0.000219,2]
[350073539,1737599466913,-156.0018296,0.000219,2]
[350073540,1737599466924,-163.12455489,0.000219,2]
[350073541,1737599466933,-2376.0,0.000219,2]
[350073542,1737599466942,-565.35,0.00021916,2]
[350073543,1737599466954,-492.581712,0.00021916,2]
[350073544,1737599466963,-832.87,0.00021916,2]
[350073545,1737599466975,-567.524343,0.00021916,2]
[350073546,1737599466984,-598.68,0.00021916,2]
[350073547,1737599466995,-726.07,0.00021916,2]
[350073548,1737599467005,-151.101062,0.00021916,2]
[350073549,1737599467014,-877.0,0.00021916,2]
[350073550,1737599467023,-561.82,0.00021916,2]
[350073551,1737599467033,-1634.03,0.00021916,2]
[350073552,1737599467043,-500.0,0.00021916,2]
[350073553,1737599467052,-1061.31,0.00021916,2]
[350073554,1737599467061,-500.0,0.00021916,2]
[350073555,1737599467071,-2096.31,0.00021916,2]
[350073556,1737599467080,-2326.67,0.00021916,2]
[350073557,1737599467089,-1001.28,0.00021916,2]
[350073558,1737599467099,-2560.3,0.00021916,2]
[350073559,1737599467110,-418.9605331,0.00021916,2]
[350073560,1737599467121,-1111.68,0.00021916,2]
[350073561,1737599467131,-1248.25,0.00021916,2]
[350073562,1737599467141,-500.0,0.00021917,2]
[350073563,1737599467150,-500.0,0.00021917,2]
[350073564,1737599467160,-500.0,0.00021917,2]
[350073565,1737599467170,-500.0,0.00021917,2]
[350073566,1737599467179,-500.0,0.00021917,2]
[350073567,1737599467188,-675.5,0.00021917,2]
[350073568,1737599467197,-988.31,0.00021917,2]
[350073569,1737599467208,-226.4198602,0.00021917,2]
[350073570,1737599467217,-500.0,0.00021917,2]
[350073571,1737599467226,-500.0,0.00021917,2]
[350073572,1737599467235,-509.86,0.00021917,2]
[350073573,1737599467245,-500.0,0.00021917,2]
[350073574,1737599467254,-500.0,0.00021917,2]
[350073575,1737599467264,-500.0,0.00021917,2]
[350073576,1737599467273,-500.0,0.00021917,2]
[350073577,1737599467282,-500.0,0.00021917,2]
[350073578,1737599467292,-505.3,0.00021917,2]
[350073579,1737599467301,-500.0,0.00021917,2]
[350073580,1737599467310,-500.0,0.00021917,2]
[350073581,1737599467319,-500.0,0.00021917,2]
[350073582,1737599467328,-500.0,0.00021917,2]
[350073583,1737599467337,-500.0,0.00021917,2]
[350073584,1737599467347,-500.0,0.00021917,2]
[350073585,1737599467357,-500.0,0.00021917,2]
[350073586,1737599467366,-500.0,0.00021917,2]
[350073587,1737599467375,-500.0,0.00021917,2]
[350073588,1737599467385,-500.0,0.00021917,2]
[350073589,1737599467394,-500.0,0.00021917,2]
[350073590,1737599467403,-500.0,0.00021917,2]
[350073591,1737599467412,-500.0,0.00021917,2]
[350073592,1737599467421,-500.0,0.00021917,2]
[350073593,1737599467431,-561.44,0.00021917,2]
[350073594,1737599467440,-502.7,0.00021917,2]
[350073595,1737599467450,-647.89,0.00021917,2]
[350073596,1737599467459,-500.0,0.00021917,2]
[350073597,1737599467471,-3339.86,0.00021917,2]
[350073598,1737599467481,-500.0,0.00021917,2]
[350073599,1737599467491,-788.96,0.00021917,2]
[350073600,1737599467500,-772.85,0.00021917,2]
[350073601,1737599467510,-1244.64,0.00021917,2]
[350073602,1737599467521,-500.0,0.00021917,2]
[350073603,1737599467532,-1459.64,0.00021917,2]
[350073604,1737599467542,-561.73,0.00021917,2]
[350073605,1737599467552,-500.0,0.00021917,2]
[350073606,1737599467562,-671.25,0.00021917,2]
[350073607,1737599467573,-1204.99,0.00021917,2]
[350073608,1737599467583,-1657.73,0.00021917,2]
[350073609,1737599467592,-673.68,0.00021917,2]
[350073610,1737599467603,-2004.83,0.00021917,2]
[350073611,1737599467613,-500.0,0.00021917,2]
[350073612,1737599467623,-501.79,0.00021917,2]
[350073613,1737599467632,-2667.34,0.00021917,2]
[350073614,1737599467644,-500.0,0.00021917,2]
[350073615,1737599467655,-742.07,0.00021917,2]
[350073616,1737599467664,-500.0,0.00021917,2]
[350073617,1737599467674,-1126.57,0.00021917,2]
[350073618,1737599467683,-1053.15,0.00021917,2]
[350073619,1737599467693,-500.0,0.00021917,2]
[350073620,1737599467702,-1636.74,0.00021917,2]
[350073621,1737599467712,-841.37,0.00021917,2]
[350073622,1737599467722,-1167.74,0.00021917,2]
[350073623,1737599467732,-537.15,0.00021917,2]
[350073624,1737599467742,-1055.11,0.00021917,2]
[350073625,1737599467751,-500.0,0.00021917,2]
[350073626,1737599467760,-3246.93,0.00021917,2]
[350073627,1737599467769,-1812.62,0.00021917,2]
[350073628,1737599467778,-500.0,0.00021917,2]
[350073629,1737599467788,-964.19,0.00021917,2]
[350073630,1737599467798,-529.70729202,0.00021917,2]
[350073631,1737599467807,-1463.35,0.00021917,2]
[350073632,1737599467817,-756.51,0.00021917,2]
[350073633,1737599467826,-1000.0,0.00021917,2]
[350073634,1737599467835,-500.0,0.00021917,2]
[350073635,1737599467844,-500.0,0.00021917,2]
[350073636,1737599467854,-1060.92,0.00021917,2]
[350073637,1737599467864,-1921.47,0.00021917,2]
[350073638,1737599467876,-194.67026737,0.00021917,2]
[350073639,1737599467886,-500.0,0.00021917,2]
[350073640,1737599467895,-924.69,0.00021917,2]
[350073641,1737599467906,-500.0,0.00021917,2]
[350073642,1737599467917,-3081.37,0.00021917,2]
[350073643,1737599467927,-923.14,0.00021917,2]
[350073644,1737599467936,-500.0,0.00021917,2]
[350073645,1737599467946,-694.55,0.00021917,2]
[350073646,1737599467957,-1906.61,0.00021917,2]
[350073647,1737599467967,-1262.91,0.00021917,2]
[350073648,1737599467976,-500.0,0.00021917,2]
[350073649,1737599467985,-500.0,0.00021917,2]
[350073650,1737599467995,-547.76,0.00021917,2]
[350073651,1737599468004,-500.0,0.00021917,2]
[350073652,1737599468013,-500.0,0.00021917,2]
[350073653,1737599468023,-1771.53,0.00021917,2]
[350073654,1737599468033,-1218.14,0.00021917,2]
[350073655,1737599468043,-929.07,0.00021917,2]
[350073656,1737599468053,-1872.91,0.00021917,2]
[350073657,1737599468063,-1206.37,0.00021917,2]
[350073658,1737599468073,-500.0,0.00021917,2]
[350073659,1737599468082,-1867.47,0.00021917,2]
[350073660,1737599468094,-500.0,0.00021917,2]
[350073661,1737599468104,-1460.57,0.00021917,2]
[350073662,1737599468119,-426.45947766,0.00021917,2]
[350073663,1737599468128,-500.0,0.00021917,2]
[350073664,1737599468137,-1160.34,0.00021917,2]
[350073665,1737599468148,-500.0,0.00021917,2]
[350073666,1737599468158,-500.0,0.00021917,2]
[350073667,1737599468168,-796.55,0.00021917,2]
[350073668,1737599468179,-692.17,0.00021917,2]
[350073669,1737599468190,-1258.1,0.00021917,2]
[350073670,1737599468201,-500.0,0.00021917,2]
[350073671,1737599468210,-1251.58,0.00021917,2]
[350073672,1737599468221,-500.0,0.00021917,2]
[350073673,1737599468230,-2295.01,0.00021917,2]
[350073674,1737599468240,-526.8,0.00021917,2]
[350073675,1737599468249,-2099.06,0.00021917,2]
[350073676,1737599468259,-500.0,0.00021917,2]
[350073677,1737599468268,-681.51,0.00021917,2]
[350073678,1737599468278,-1038.44,0.00021917,2]
[350073679,1737599468288,-151.0,0.00021917,2]
[350073680,1737599468298,-500.0,0.00021917,2]
[350073681,1737599468308,-688.26,0.00021917,2]
[350073682,1737599468317,-516.31620601,0.00021917,2]
[350073683,1737599468327,-859.68,0.00021917,2]
[350073684,1737599468338,-839.81,0.00021917,2]
[350073685,1737599468348,-500.0,0.00021917,2]
[350073686,1737599468357,-593.508612,0.00021917,2]
[350073687,1737599468367,-183.345988,0.00021917,2]
[350073688,1737599468493,-878.81,0.00021917,2]
[350073689,1737599468503,-593.508612,0.00021917,2]
[350073690,1737599468513,-500.0,0.00021917,2]
[350073691,1737599468524,-183.345988,0.00021917,2]
[350073692,1737599468534,-529.67,0.00021917,2]
[350073693,1737599468546,-2809.15,0.00021917,2]
[350073694,1737599468556,-758.26,0.00021917,2]
[350073695,1737599468567,-1218.65,0.00021917,2]
[350073696,1737599468578,-151.648961,0.00021917,2]
[350073697,1737599468588,-151.0,0.00021917,2]
[350073698,1737599468597,-518.3387213,0.00021917,2]
[350073699,1737599468607,-512.25,0.00021917,2]
[350073700,1737599468616,-500.0,0.00021917,2]
[350073701,1737599468626,-847.25,0.00021917,2]
[350073702,1737599468636,-809.53,0.00021917,2]
[350073703,1737599468646,-1137.11,0.00021917,2]
[350073704,1737599468655,-500.0,0.00021917,2]
[350073705,1737599468665,-500.0,0.00021917,2]
[350073706,1737599468674,-500.0,0.00021917,2]
[350073707,1737599468684,-500.0,0.00021917,2]
[350073708,1737599468693,-2655.17,0.00021917,2]
[350073709,1737599468702,-500.0,0.00021917,2]
[350073710,1737599468712,-2577.5,0.00021917,2]
[350073711,1737599468727,-150.0,0.00021918,2]
[350073712,1737599468737,-555.08,0.00021959,7]
[350073713,1737599468747,-555.08,0.00021959,7]
[350073714,1737599468756,-295.36994334,0.00021973,4]
[350073715,1737599468766,-150.0,0.00021973,4]
[350073716,1737599468776,-151.67191347,0.00021973,4]
[350073717,1737599468785,-150.0,0.00021973,4]
[350073718,1737599468797,-295.36994334,0.00021977,4]
[350073719,1737599468806,-151.67191347,0.00021977,4]
[350073720,1737599468815,-150.0,0.0002198,4]
[350073721,1737599468825,-295.36994334,0.00021981,4]
[350073722,1737599468834,-151.67191347,0.00021981,4]
[350073723,1737599468843,-295.36994334,0.00021985,4]
[350073724,1737599468852,-151.67191347,0.00021985,4]
[350073725,1737599468862,-1764.48205204,0.00021987,3]
[350073726,1737599468874,-150.0,0.00021988,4]
[350073727,1737599468884,-295.36994334,0.00021989,4]
[350073728,1737599468893,-151.67191347,0.00021989,4]
[350073729,1737599468903,-295.36994334,0.00021993,4]
[350073730,1737599468913,-151.67191347,0.00021993,4]
[350073731,1737599468922,-150.0,0.00021995,4]
[350073732,1737599468933,-150.0,0.00021995,4]
[350073733,1737599468944,-7035.21324828,0.00021997,2]
[350073734,1737599468953,-295.36994334,0.00021998,4]
[350073735,1737599468962,-151.67191347,0.00021998,4]
[350073736,1737599468975,-151.0,0.00021999,2]
[350073737,1737599468984,-1001.4082,0.00021999,2]
[350073738,1737599468994,-740.95,0.00021999,2]
[350073739,1737599469004,-500.0,0.00021999,2]
[350073740,1737599469015,-500.0,0.00021999,2]
[350073741,1737599469024,-284.33443023,0.00021999,2]
[350073742,1737599469035,-500.0,0.00021999,2]
[350073743,1737599469044,-500.0,0.00021999,2]
[350073744,1737599469054,-500.0,0.00021999,2]
[350073745,1737599469064,-528.27727685,0.00021999,2]
[350073746,1737599469075,-1452552.34684611,0.00021999,2]
[350073747,1737599469291,-5554.95488683,0.00021999,2]
[350073748,1737599469301,-1918.7784779,0.00022,2]
[350073749,1737599469311,-28603.49471604,0.00022,2]
[350073750,1737599469322,-1431.76008157,0.00022,2]
[350073751,1737599469333,-1304.58221896,0.00022,2]
[350073752,1737599469345,-15721.81745,0.00022,2]
[350073753,1737599469678,-500.0,0.00019178,2]
[350073754,1737599469688,-12.95687772,0.00019178,2]
[350073755,1737599469709,-447.20297521,0.00019178,2]
[350073756,1737599469719,-500.0,0.00019178,2]
[350073757,1737599469728,-2168.28,0.0001945,2]
[350073758,1737599469738,-1332.42,0.00019451,2]
[350073759,1737599469747,-500.0,0.00019452,2]
[350073760,1737599469757,-500.0,0.00019452,2]
[350073761,1737599469767,-500.0,0.00019625,2]
[350073762,1737599469777,-716.66972479,0.00019724,2]
[350073763,1737599469804,-1451.61027521,0.00019724,2]
[350073764,1737599469814,-1332.42,0.00019725,2]
[350073765,1737599469824,-238.80972894,0.00019726,2]
[350073766,1737599469833,-500.0,0.00019726,2]
[350073767,1737599469843,-547.24660592,0.00019899,2]
[350073768,1737599469853,-196.0,0.000199,2]
[350073769,1737599469863,-2168.28,0.00019998,2]
[350073770,1737599469876,-1332.42,0.00019999,2]
[350073771,1737599469887,-2168.28,0.00020272,2]
[350073772,1737599469898,-1332.42,0.00020273,2]
[350073773,1737599469907,-2168.28,0.00020546,2]
[350073774,1737599469919,-2168.28,0.0002082,2]
[350073775,1737599469928,-1303.47,0.00020821,2]
[350073776,1737599469937,-2168.28,0.00021094,2]
[350073777,1737599469947,-1303.47,0.00021095,2]
[350073778,1737599469957,-1303.47,0.00021369,2]
[350073779,1737599469969,-1303.47,0.00021643,2]
[350073780,1737599469978,-1303.47,0.00021917,2]
[350073781,1737599469987,-48833.32160084,0.00022,2]
[350073782,1737599469998,-625.34,0.00022,2]
[350073783,1737599470021,-624.83027575,0.00020547,2]
[350073784,1737599470032,-707.58972425,0.00020547,2]
[350073785,1737599470042,-7857.81113425,0.00022,2]
[350073786,1737599470075,-33530.71741239,0.00022,2]
[350073787,1737599470302,-500.0,0.00019178,2]
[350073788,1737599470311,-363.89900022,0.00019451,2]
[350073789,1737599470320,-500.0,0.00019451,2]
[350073790,1737599470330,-105.68859986,0.00019725,2]
[350073791,1737599470341,-394.31140014,0.00019725,2]
[350073792,1737599470351,-500.0,0.0002,2]
[350073793,1737599470360,-68.19859986,0.00020273,2]
[350073794,1737599470374,-431.80140014,0.00020273,2]
[350073795,1737599470383,-23.86435217,0.00020547,2]
[350073796,1737599470394,-476.13564783,0.00020547,2]
[350073797,1737599470403,-494.47026677,0.00020821,2]
[350073798,1737599470414,-717.8093996,0.00020821,2]
[350073799,1737599470549,-120.14033363,0.00020821,2]
[350073800,1737599470558,-477.36102056,0.00020821,2]
[350073801,1737599470580,-500.0,0.00019999,2]
[350073802,1737599470590,-22.63897944,0.00020821,2]
[350073803,1737599470600,-1332.42,0.00021095,2]
[350073804,1737599470610,-500.0,0.00021095,2]
[350073805,1737599470621,-2168.28,0.00021368,2]
[350073806,1737599470630,-1332.42,0.00021369,2]
[350073807,1737599470640,-500.0,0.00021369,2]
[350073808,1737599470650,-2168.28,0.00021642,2]
[350073809,1737599470660,-1332.42,0.00021643,2]
[350073810,1737599470671,-500.0,0.00021643,2]
[350073811,1737599470680,-2168.28,0.00021916,2]
[350073812,1737599470690,-1332.42,0.00021917,2]
[350073813,1737599470699,-500.0,0.00021917,2]
[350073814,1737599470709,-1435622.08075266,0.00022,2]
[350073815,1737599470734,-1238.1999999,0.00022,2]
[350073816,1737599470750,-500.0,0.00019625,2]
[350073817,1737599470759,-99178.73191858,0.00022,2]
[350073818,1737599470780,-976761.07771784,0.00022,2]
[350073819,1737599470989,-775.6129887,0.00017313,2]
[350073820,1737599471021,-918.87758296,0.00017313,2]
[350073821,1737599471032,-4013.16331544,0.00017313,2]